Workbook

Sheet Intro
B4: Sample Budget for Small-Scale Commercial Tomato Operations in East Tennessee
B5: Version 1.0
B7: Margarita Velandia
B8: Associate Professor
B9: Office: (865) 974-7409 Email: mvelandia@utk.edu
B11: Becky Bowling
B12: Extension Specialist
B13: Office: (865) 974-1895 Email: bowling10@utk.edu
B26: Programs in agriculture and natural resources, 4-H youth development, family and consumer sciences, and resource development.
B27: University of Tennessee Institute of Agriculture, U.S. Department of Agriculture and country governments cooperating.
B28: UT Extension provide equal opportunities in programs and employment.

Sheet Sample Budget
B1: 2015 SAMPLE TOMATO BUDGET FOR SMALL FARMS IN EAST TENNESSEE
C3: Tomato Variety: | D3: Round red tomatoes (empire, celebrity)
C4: Production practice: | D4: Open field production + irrigated
C5: No. of farmers markets attended: | D5: 1
C6: No. of products sold at farmers markets | D6: 3
C7: Operation Size: | D7: 1,000 square feet
C8: Space between plants: | D8: 24 inches
C9: Space between rows: | D9: 6 feet
C10: Location | D10: East Tennessee
D12: UNIT | E12: QUANTITY | F12: $/UNIT | G12: TOTAL
C13: GROSS RETURNS
C14: Tomatoes* | D14: lbs | E14: =E17*'Input suppliers_and_other info'!C$153 -> 700 | F14: 2 | G14: =+F14*E14 -> 1400
C16: VARIABLE COST
C17: Tomato plants-hybrid1 | D17: plant | E17: 100 | F17: =+AVERAGE('Input suppliers_and_other info'!E$5,'Input suppliers_and_other info'!E$6,'Input suppliers_and_other info'!E$7,'Input suppliers_and_other info'!E$8,'Input suppliers_and_other info'!E$11,'Input suppliers_and_other info'!E$13,'Input suppliers_and_other info'!E$14) -> 0.6657930839 | G17: =+F17*E17 -> 66.57930839
C18: Fertilizer2
C19: Plant starter (20-20-20) | D19: lb | E19: 9.2 | F19: =+AVERAGE('Input suppliers_and_other info'!E$20:E$24) -> 1.15552 | G19: =+F19*E19 -> 10.630784
C20: Calcium nitrate | D20: lb | E20: 6.5 | F20: =+AVERAGE('Input suppliers_and_other info'!E$36:E$40) -> 0.39992 | G20: =+F20*E20 -> 2.59948
C21: Potassium nitrate | D21: lb | E21: 13.5 | F21: =+AVERAGE('Input suppliers_and_other info'!E$28:E$32) -> 0.79904 | G21: =+F21*E21 -> 10.78704
C22: Soil test3 | D22: test | E22: 1 | F22: =+'Input suppliers_and_other info'!E$44 -> 7 | G22: =+F22*E22 -> 7
C23: Fungicides4
C24: Chlorothalonil 6SC | D24: ml | E24: 43.3 | F24: =+AVERAGE('Input suppliers_and_other info'!E$57:E$58) -> 0.008744517834 | G24: =+F24*E24 -> 0.3786376222
C25: Inspire Super | D25: ml | E25: 32.5 | F25: =+AVERAGE('Input suppliers_and_other info'!E$49:E$50) -> 0.05667107001 | G25: =+F25*E25 -> 1.841809775
C26: Fontelis | D26: ml | E26: 32.5 | F26: =+AVERAGE('Input suppliers_and_other info'!E$53:E$54) -> 0.06219286658 | G26: =+F26*E26 -> 2.021268164
C27: Mancozeb | D27: lb | E27: 0.18 | F27: =+AVERAGE('Input suppliers_and_other info'!E$61:E$61) -> 5.825 | G27: =+F27*E27 -> 1.0485
C28: Copper | D28: lb | E28: 0.11 | F28: =+AVERAGE('Input suppliers_and_other info'!E$64:E$64) -> 7.95 | G28: 0.8745
C29: Herbicide5
C30: Metribuzin | D30: oz | E30: 0.18 | F30: =+AVERAGE('Input suppliers_and_other info'!E$102:E$103) -> 1.0684375 | G30: =+F30*E30 -> 0.19231875
C31: Poast | D31: pt | E31: 0.03 | F31: =+AVERAGE('Input suppliers_and_other info'!E$108) -> 12.4975 | G31: =+E31*F31 -> 0.374925
C32: Insecticide5
C33: Dipel DF | D33: oz | E33: 0.7 | F33: =+AVERAGE('Input suppliers_and_other info'!E$69:E$76) -> 1.226 | G33: =+F33*E33 -> 0.8582
C34: Radiant SC | D34: ml | E34: 5.4 | F34: =+AVERAGE('Input suppliers_and_other info'!E$87:E$88) -> 0.2219207521 | G34: =+E34*F34 -> 1.198372061
C35: Montana 2F | D35: ml | E35: 2 | F35: =+AVERAGE('Input suppliers_and_other info'!E$94:E$95) -> 0.02245046235 | G35: =+F35*E35 -> 0.0449009247
C36: Plastic mulch6 | D36: sq ft | E36: 800 | F36: =+AVERAGE('Input suppliers_and_other info'!E$115:E$119) -> 0.0112645625 | G36: =+F36*E36 -> 9.01165
C37: Stakes7 | D37: stake | E37: 48 | F37: =+AVERAGE('Input suppliers_and_other info'!E$123:E$125) -> 0.7 | G37: =+F37*E37 -> 33.6
C38: Twine/string7 | D38: box | E38: 1 | F38: =+AVERAGE('Input suppliers_and_other info'!E$130:E$132) -> 7.43 | G38: =+F38*E38 -> 7.43
C39: Irrigation supplies8
C40: Drip tape | D40: linear ft | E40: 200 | F40: =+AVERAGE('Input suppliers_and_other info'!E$136:E$138) -> 0.06878333333 | G40: =+F40*E40 -> 13.75666667
C41: Hired labor9
C42: Transplanting, bed preparation (lay plastic and drip) | D42: hours | E42: 8 | F42: 10 | G42: =+F42*E42 -> 80
C43: Pruning and Training | D43: hour | E43: 10 | F43: 10 | G43: =+F43*E43 -> 100
C44: Harvesting | D44: hour | E44: 9 | F44: 10 | G44: =+F44*E44 -> 90
C45: Other10
C46: Machinery (maintenance and repairs) | D46: 1000 sq ft | E46: 1 | F46: 2 | G46: =+E46*F46 -> 2
C47: Cash rent | D47: 1000 sq ft | E47: 1 | F47: 3.8 | G47: =+E47*F47 -> 3.8
C49: TOTAL VARIABLE COST | G49: =SUM(G17:G47) -> 446.0283614
C50: INTEREST ON VARIABLE COST11 | D50: % | E50: =+G49 -> 446.0283614 | F50: 0.06 | G50: =+E50*F50 -> 26.76170168
C52: MARKETING COSTS
C53: Annual fee ((1/No. of products sold) of total annual fee)12 | G53: =+AVERAGE('Input suppliers_and_other info'!C$163:C$178)*1/$D$6 -> 10
C54: Booth fee ((1/No. of products sold) of total booth fee cost)12 | D54: day | E54: 20 | F54: =+AVERAGE('Input suppliers_and_other info'!D$165:D$178,'Input suppliers_and_other info'!D$163) -> 10.95 | G54: =+F54*E54*1/$D$6 -> 73
C55: Hired labor ((1/No. of products sold) of total hired labor)13 | D55: hour | E55: 80 | F55: 10 | G55: =+F55*E55*1/$D$6 -> 266.6666667
C56: Crates14 | D56: crate | E56: 30 | F56: =+AVERAGE('Input suppliers_and_other info'!F$143:F$145) -> 8.536666667 | G56: =+E56*F56 -> 256.1
C57: Gas/Fuel (driving to market, (1/No. of products sold) of total cost)15 | D57: 1000 sq ft | E57: 1 | G57: =80*2.15*1/$D$6 -> 57.33333333
C58: Other marketing costs16
C59: TOTAL MARKETING COSTS | G59: =SUM(G53:G58) -> 663.1
C61: TOTAL VARIABLE AND MARKETING COST | G61: =+G49+G50+G59 -> 1135.890063
C63: RETURN ABOVE VARIABLE AND MARKETING COST | G63: =+G14-G61 -> 264.109937
C65: Prices cannot go below $1 or above $3.50 per lb. This assumption is made base on observed average prices received by East Tennessee farmers at farmers’ markets according to the 2014 Tennessee farmers’ markets price reports available at
C67: www.uky.edu/Ag/CCD/TNfarmersmarket.html
B501: 2015 SAMPLE TOMATO BUDGET FOR SMALL FARMS IN EAST TENNESSEE
C503: Tomato Variety: | D503: Round red tomatoes (empire, celebrity)
C504: Production practice: | D504: Open field production + irrigated
C505: No. of farmers markets attended: | D505: 1
C506: No. of products sold at farmers markets | D506: 3
C507: Operation Size: | D507: 1,000 square feet
C508: Space between plants: | D508: 24 inches
C509: Space between rows: | D509: 6 feet
C510: Location | D510: East Tennessee
D512: UNIT | E512: QUANTITY | F512: $/UNIT | G512: TOTAL
C513: GROSS RETURNS
C514: Tomatoes* | D514: lbs | E514: =E517*'Input suppliers_and_other info'!C$153 -> 700 | F514: 2 | G514: 1400
C516: VARIABLE COST
C517: Tomato plants-hybrid1 | D517: plant | E517: 100 | F517: =+AVERAGE('Input suppliers_and_other info'!E$5,'Input suppliers_and_other info'!E$6,'Input suppliers_and_other info'!E$7,'Input suppliers_and_other info'!E$8,'Input suppliers_and_other info'!E$11,'Input suppliers_and_other info'!E$13,'Input suppliers_and_other info'!E$14) -> 0.6657930839 | G517: 66.57930839
C518: Fertilizer2
C519: Plant starter (20-20-20) | D519: lb | E519: 9.2 | F519: =+AVERAGE('Input suppliers_and_other info'!E$20:E$24) -> 1.15552 | G519: 10.630784
C520: Calcium nitrate | D520: lb | E520: 6.5 | F520: =+AVERAGE('Input suppliers_and_other info'!E$36:E$40) -> 0.39992 | G520: 2.59948
C521: Potassium nitrate | D521: lb | E521: 13.5 | F521: =+AVERAGE('Input suppliers_and_other info'!E$28:E$32) -> 0.79904 | G521: 10.78704
C522: Soil test3 | D522: test | E522: 1 | F522: =+'Input suppliers_and_other info'!E$44 -> 7 | G522: 7
C523: Fungicides4
C524: Chlorothalonil 6SC | D524: ml | E524: 43.3 | F524: =+AVERAGE('Input suppliers_and_other info'!E$57:E$58) -> 0.008744517834 | G524: 1.180509908
C525: Inspire Super | D525: ml | E525: 32.5 | F525: =+AVERAGE('Input suppliers_and_other info'!E$49:E$50) -> 0.05667107001 | G525: 1.847476882
C526: Fontelis | D526: ml | E526: 32.5 | F526: =+AVERAGE('Input suppliers_and_other info'!E$53:E$54) -> 0.06219286658 | G526: 2.02748745
C527: Mancozeb | D527: lb | E527: 0.18 | F527: =+AVERAGE('Input suppliers_and_other info'!E$61:E$61) -> 5.825
C528: Copper | D528: lb | E528: 0.11 | F528: =+AVERAGE('Input suppliers_and_other info'!E$64:E$64) -> 7.95
C529: Herbicide5
C530: Metribuzin | D530: oz | E530: 0.18 | F530: =+AVERAGE('Input suppliers_and_other info'!E$102:E$103) -> 1.0684375 | G530: 0.19231875
C531: Poast | D531: pt | E531: 0.03 | F531: =+AVERAGE('Input suppliers_and_other info'!E$108) -> 12.4975 | G531: 0.374925
C532: Insecticide5
C533: Dipel DF | D533: oz | E533: 0.7 | F533: =+AVERAGE('Input suppliers_and_other info'!E$69:E$76) -> 1.226 | G533: 0.8582
C534: Radiant SC | D534: ml | E534: 5.4 | F534: =+AVERAGE('Input suppliers_and_other info'!E$87:E$88) -> 0.2219207521 | G534: 1.198372061
C535: Montana 2F | D535: ml | E535: 2 | F535: =+AVERAGE('Input suppliers_and_other info'!E$94:E$95) -> 0.02245046235 | G535: 0.0449009247
C536: Plastic mulch6 | D536: sq ft | E536: 800 | F536: =+AVERAGE('Input suppliers_and_other info'!E$115:E$119) -> 0.0112645625 | G536: 9.01165
C537: Stakes7 | D537: stake | E537: 48 | F537: =+AVERAGE('Input suppliers_and_other info'!E$123:E$125) -> 0.7 | G537: 33.6
C538: Twine/string7 | D538: box | E538: 1 | F538: =+AVERAGE('Input suppliers_and_other info'!E$130:E$132) -> 7.43 | G538: 7.43
C539: Irrigation supplies8
C540: Drip tape | D540: linear ft | E540: 200 | F540: =+AVERAGE('Input suppliers_and_other info'!E$136:E$138) -> 0.06878333333 | G540: 13.75666667
C541: Hired labor9
C542: Transplanting, bed preparation (lay plastic and drip) | D542: hours | E542: 8 | F542: 10 | G542: 80
C543: Pruning and Training | D543: hour | E543: 10 | F543: 10 | G543: 100
C544: Harvesting | D544: hour | E544: 9 | F544: 10 | G544: 90
C545: Other10
C546: Machinery (maintenance and repairs) | D546: 1000 sq ft | E546: 1 | F546: 2 | G546: 12
C547: Cash rent | D547: 1000 sq ft | E547: 1 | F547: 3.8 | G547: 6
C549: TOTAL VARIABLE COST | G549: 469.11912
C550: INTEREST ON VARIABLE COST (6%)11 | D550: % | E550: 469.11912 | F550: 0.06 | G550: 28.1471472
C552: MARKETING COSTS
C553: Annual fee12 | G553: =+AVERAGE('Input suppliers_and_other info'!C$163:C$178)*1/$D$6 -> 10
C554: Booth fee12 | D554: day | E554: 20 | F554: =+AVERAGE('Input suppliers_and_other info'!D$165:D$178,'Input suppliers_and_other info'!D$163) -> 10.95 | G554: 73
C555: Hired labor13 | D555: hour | E555: 80 | F555: 10 | G555: 266.6666667
C556: Crates14 | D556: crate | E556: 30 | F556: =+AVERAGE('Input suppliers_and_other info'!F$143:F$145) -> 8.536666667 | G556: 256.1
C557: Gas/Fuel (driving to market)15 | D557: 1000 sq ft | E557: 1 | G557: =80*2.15*1/$D$6 -> 57.33333333
C558: Other marketing costs16
C559: TOTAL MARKETING COSTS | G559: 675.67
C561: TOTAL VARIABLE AND MARKETING COST | G561: 1172.936267
C563: RETURN ABOVE VARIABLE AND MARKETING COST | G563: 227.0637328

Sheet Input suppliers_and_other info (hidden)
D1: INPUT SUPPLIERS INFORMATION
B3: TOMATO PLANTS
B4: Suppliers | C4: Unit (No. plants) | D4: Price | E4: Price per plant | F4: Minmum order | G4: Phone | H4: Address | I4: Website
B5: Holden Nursery | C5: 48 | D5: 12 | E5: =+D5/C5 -> 0.25 | F5: none | G5: (865) 933-7165 | H5: 3615 Strong Road Mascot, TN 37806 | I5: https://www.facebook.com/pages/Holden-Nursery/444258498995969
B6: Honey Rock Herb Farm | C6: 1 | D6: 2 | E6: =+D6/C6 -> 2 | F6: none | G6: (865) 984-0954 | H6: 113 Honey Rock Way Louisville, TN | I6: http://www.honeyrockherbfarm.com/index.html
B7: Evans Plant Co. | C7: 100 | D7: 41.95 | E7: =+D7/C7 -> 0.4195 | F7: 100 | G7: (229) 382-1337 | I7: www.evansvegetableplants.com
B8: Park Seed Wholesale | C8: 140 | D8: 46.95 | E8: =+D8/C8 -> 0.3353571429 | F8: 140 | G8: (800) 845-3366 | I8: www.parkwholesale.com
B9: Arrons creek | C9: 100 | D9: 47.95 | E9: 0.4795 | F9: 500 | G9: (434) 374-2174 | H9: 380 Greenhouse Drive Buffalo Junction, VA 24529 | I9: http://www.acfplugs.com/home.htm
B10: Country Gardens | C10: 32 | D10: 12 | E10: 0.375 | F10: 320 | G10: (615) 763-6112 | H10: Coutry Gardens Agricenter 7858 Moore Road Memphis, TN 38120 Coutry Gardens Arlington 12016 Walker Street Arlington, TN 38002 | I10: http://www.countrygardensmemphis.com/
B11: Dixon Farm | C11: 18 | D11: 6 | E11: 0.3333333333 | F11: 90 | G11: (931) 239-1065 | H11: 2038 Clarkrange-Monterey Highway Monterey, TN 38574
B12: Evans Produce | C12: 48 | D12: 18 | E12: 0.375 | F12: 480 | G12: (615) 308-5861 | I12: http://www.evans4produce.com/
B13: Clear Springs Farm | C13: 18 | D13: 20 | E13: 1.111111111 | F13: 90 | G13: (865) 622-0380 | H13: 8411 Thompson School Rd. Corryton TN 37721 | I13: http://clearspringsfarm.org/
B14: Wolf River Valley Growers | C14: 40 | D14: 8.45 | E14: =+D14/C14 -> 0.21125 | F14: 60 | G14: (931) 879-5426 | H14: 170 Greenhouse Lane Pall Mall, TN 38577 | I14: http://wolfriver.net/
B15: Pope's Plant Farm, Inc | C15: 40 | D15: 8 | E15: =+D15/C15 -> 0.2 | F15: 400 | G15: (865) 856-8099 | H15: 6814 Hwy 411 South Greenback, TN 37742 736 Alcoa Trail Maryvile, TN 37804 | I15: http://popesplantfarm.com/
B17: FERTILIZERS
B18: Plant Starter (20-20-20)
B19: Suppliers | C19: Unit (lb) | D19: Price | E19: Price per lb | F19: Minmum order (lb) | G19: Phone | H19: Address | I19: Website
B20: Jackson’s Seed and Farm Supply | C20: 25 | D20: 28 | E20: =+D20/C20 -> 1.12 | F20: 25 | G20: 816) 424-3084 | H20: 13015 SE Bigham Rd Easton Missouri | I20: https://www.facebook.com/pages/Jackson-Seed-Farm-Supply/112252972170652
B21: Grainger Farmers Co-op | C21: 25 | D21: 28.99 | E21: =+D21/C21 -> 1.1596 | F21: 25 | G21: (865) 828-5226 | H21: 8570 Rutledge Pike Rutledge, TN 37861 | I21: http://ourcoop.com/ourcoop08/locator/storeDetail.aspx?storeID=37
B22: Mize Green House and Garden supply | C22: 25 | D22: 27.95 | E22: =+D22/C22 -> 1.118 | F22: 25 | G22: (800) 321-8161 | H22: 625 Wesinpar Rd Johnson City, TN 37604 | I22: http://www.mizeonline.com/
B23: Deerfield Supplies | C23: 25 | D23: 32.5 | E23: =+D23/C23 -> 1.3 | F23: 25 | G23: (270) 265-2425 | H23: 2825 Stringtown Road Elkton, KY 42220 | I23: https://www.facebook.com/pages/Deerfield-Supplies/159304630770116
B24: Griffin Greenhouse | C24: 25 | D24: 27 | E24: =+D24/C24 -> 1.08 | F24: 25 | G24: (800) 888-0054 | H24: 7141 Old Rutledge Pike Knoxville, TN 37924 | I24: www.griffins.com
B26: Potassium Nitrate
B27: Suppliers | C27: Unit (lb) | D27: Price | E27: Price per lb | F27: Minmum order (lb) | G27: Phone | H27: Address | I27: Website
B28: Grainger Farmers Co-op | C28: 50 | D28: 34.69 | E28: =+D28/C28 -> 0.6938 | F28: 50 | G28: (865) 828-5226 | H28: 8570 Rutledge Pike Rutledge, TN 37861 | I28: http://ourcoop.com/ourcoop08/locator/storeDetail.aspx?storeID=37
B29: Jackson’s Seed and Farm Supply | C29: 50 | D29: 33.75 | E29: =+D29/C29 -> 0.675 | F29: 25 | G29: 816) 424-3084 | H29: 13015 SE Bigham Rd Easton Missouri | I29: https://www.facebook.com/pages/Jackson-Seed-Farm-Supply/112252972170652
B30: Mize Green House and Garden supply | C30: 50 | D30: 39.32 | E30: =+D30/C30 -> 0.7864 | F30: 50 | G30: (800) 321-8161 | H30: 625 Wesinpar Rd Johnson City, TN 37604 | I30: http://www.mizeonline.com/
B31: Deerfield Supplies | C31: 50 | D31: 36 | E31: =+D31/C31 -> 0.72 | F31: 50 | G31: (270) 265-2425 | H31: 2825 Stringtown Road Elkton, KY 42220 | I31: https://www.facebook.com/pages/Deerfield-Supplies/159304630770116
B32: Griffin Greenhouse | C32: 50 | D32: 56 | E32: =+D32/C32 -> 1.12 | F32: 50 | G32: (800) 888-0054 | H32: 7141 Old Rutledge Pike Knoxville, TN 37924 | I32: www.griffins.com
B34: Calcium Nitrate
B35: Suppliers | C35: Unit (lb) | D35: Price | E35: Price per lb | F35: Minmum order (lb) | G35: Phone | H35: Address | I35: Website
B36: Grainger Farmers Co-op | C36: 50 | D36: 15.39 | E36: =+D36/C36 -> 0.3078 | F36: 50 | G36: (865) 828-5226 | H36: 8570 Rutledge Pike Rutledge, TN 37861 | I36: http://ourcoop.com/ourcoop08/locator/storeDetail.aspx?storeID=37
B37: Jackson’s Seed and Farm Supply | C37: 50 | D37: 17.75 | E37: =+D37/C37 -> 0.355 | F37: 25 | G37: 816) 424-3084 | H37: 13015 SE Bigham Rd Easton Missouri | I37: https://www.facebook.com/pages/Jackson-Seed-Farm-Supply/112252972170652
B38: Mize Green House and Garden supply | C38: 50 | D38: 22.34 | E38: =+D38/C38 -> 0.4468 | F38: 50 | G38: (800) 321-8161 | H38: 625 Wesinpar Rd Johnson City, TN 37604 | I38: http://www.mizeonline.com/
B39: Deerfield Supplies | C39: 50 | D39: 18.5 | E39: =+D39/C39 -> 0.37 | F39: 50 | G39: (270) 265-2425 | H39: 2825 Stringtown Road Elkton, KY 42220 | I39: https://www.facebook.com/pages/Deerfield-Supplies/159304630770116
B40: Griffin Greenhouse | C40: 50 | D40: 26 | E40: =+D40/C40 -> 0.52 | F40: 50 | G40: (800) 888-0054 | H40: 7141 Old Rutledge Pike Knoxville, TN 37924 | I40: www.griffins.com
B42: SOIL TEST
B43: Suppliers | C43: Unit (basic test) | D43: Price | E43: Price per test | F43: Minimum order | G43: Phone | H43: Address | I43: Website
B44: Soil, Plant and Pest Center | C44: 1 | D44: 7 | E44: =+D44/C44 -> 7 | F44: 1 test | G44: (615) 832-5850 | H44: 5201 Marchant Drive Nashville, TN 37211 | I44: https://ag.tennessee.edu/spp/Pages/soiltesting.aspx
B46: FUNGICIDES
B47: Inspire Super
B48: Suppliers | C48: Unit (gal) | D48: Price | E48: Price per ml | F48: Phone | G48: Address | H48: Website
B49: Grainger Farmers Co-op | C49: 1 | D49: 220 | E49: =+D49/$C$188 -> 0.05812417437 | F49: (865) 828-5226 | G49: 8570 Rutledge Pike Rutledge, TN 37861 | H49: http://ourcoop.com/ourcoop08/locator/storeDetail.aspx?storeID=37
B50: Jackson’s Seed and Farm Supply | C50: 1 | D50: 209 | E50: =+D50/$C$188 -> 0.05521796565 | F50: 816) 424-3084 | G50: 13015 SE Bigham Rd Easton Missouri | H50: https://www.facebook.com/pages/Jackson-Seed-Farm-Supply/112252972170652
B51: Fontelis
B52: Suppliers | C52: Unit (gal) | D52: Price | E52: Price per ml
B53: Grainger Farmers Co-op | C53: 2.5 | D53: 595 | E53: =+D53/($C$188*2.5) -> 0.06287978864
B54: Jackson’s Seed and Farm Supply | C54: 2.5 | D54: 582 | E54: =+D54/($C$188*2.5) -> 0.06150594452 | F54: 816) 424-3084 | G54: 13015 SE Bigham Rd Easton Missouri | H54: https://www.facebook.com/pages/Jackson-Seed-Farm-Supply/112252972170652
B55: Chlorothalonil 6SC | G55: =+E55*F55 -> 0
B56: Suppliers | C56: Unit (gal) | D56: Price | E56: Price per ml | F56: Phone | G56: Address | H56: Website
B57: Grainger Farmers Co-op | C57: 2.5 | D57: 62.99 | E57: =+D57/($C$188*2.5) -> 0.00665680317 | F57: (865) 828-5226 | G57: 8570 Rutledge Pike Rutledge, TN 37861 | H57: http://ourcoop.com/ourcoop08/locator/storeDetail.aspx?storeID=37
B58: Jackson’s Seed and Farm Supply | C58: 2.5 | D58: 102.5 | E58: =+D58/($C$188*2.5) -> 0.0108322325 | F58: 816) 424-3084 | G58: 13015 SE Bigham Rd Easton Missouri | H58: https://www.facebook.com/pages/Jackson-Seed-Farm-Supply/112252972170652
B59: Mancozeb
B60: Suppliers | C60: Unit (6 lbs) | D60: Price | E60: Price per lb | F60: Phone | G60: Address | H60: Website
B61: Keystone PestSolutions LLC | C61: 1 | D61: 34.95 | E61: =+D61/6 -> 5.825 | F61: (877)835-8321 | G61: 205 Day Break Rd Bonners Ferry, ID 83805 | H61: http://www.keystonepestsolutions.com/index.php?main_page=product_info&products_id=144&gclid=CM-FwLf5y8UCFdgMgQodx5UAMQ
B62: Copper
B63: Suppliers | C63: Unit (20 lbs) | D63: Price | E63: Price per lb | F63: Phone | G63: Address | H63: Website
B64: Keystone PestSolutions LLC | C64: 1 | D64: 159 | E64: =+D64/20 -> 7.95 | F64: (877)835-8321 | G64: 205 Day Break Rd Bonners Ferry, ID 83805 | H64: http://www.johnnyseeds.com/p-7915-champ-wg-copper-fungicide-20-lb.aspx?utm_source=froogle&utm_medium=CSE&utm_campaign=MerchantAdv&zmam=80483139&zmas=1&zmac=1&zmap=9778.0&gclid=CN2B2OOGzMUCFc4dgQodMqUA9A#
B66: Insecticides
B67: Dipel DF
B68: Suppliers | C68: Unit (oz) | D68: Price | E68: Price per oz | F68: Minmum order (oz) | G68: Phone | H68: Address | I68: Website
B69: Keystone Pest Solutions | C69: 16 | D69: 20.95 | E69: =D69/C69 -> 1.309375 | F69: 16 | G69: 8778358321 | I69: http://www.keystonepestsolutions.com/dipel-biological-insecticide-1-pound-omri-certified-organic-267.html
B70: Crop King | C70: 16 | D70: 18.3 | E70: 1.14375 | F70: 16 | G70: 3303024203 | I70: https://www.cropking.com/catalog/fungicide-insecticide/dipel-df-1-pound-bag-dry
B71: Griffins Greenhouse | C71: 16 | D71: 16.29 | E71: 1.018125 | F71: 16 | G71: 8008880054 | I71: http://www.griffins.com/pdf/email/5-13-GGSPro.pdf
B72: Johnnys Seeds | C72: 16 | D72: 26.95 | E72: 1.684375 | F72: 16 | G72: 8775646697 | I72: http://www.johnnyseeds.com/p-5989-dipel-df-1-lb.aspx?utm_source=froogle&utm_medium=CSE&utm_campaign=MerchantAdv&zmam=80483139&zmas=1&zmac=1&zmap=9713.0&gclid=CKHP8YmOhsQCFeFj7AodBigAoA
B73: Bloomington Wholesale Garden Supply | C73: 16 | D73: 12.5 | E73: 0.78125 | F73: 16 | G73: 8003161306 | I73: http://www.bwgs.com/Item/Details/12026
B74: Growers Solution | C74: 16 | D74: 19.99 | E74: 1.249375 | F74: 16 | G74: 8669283390 | I74: http://www.growerssolution.com/PROD/dipel-pro-54-percent-df-1-pound-bacillus-thuringiensis-omri-approved/70-1450
B75: Agriculture Solutions | C75: 80 | D75: 94.99 | E75: 1.187375 | F75: 16 | G75: 8187247657 | I75: http://www.agriculturesolutions.com/products/natural-pest-control/insecticides-and-oils/dipel-pro-df-bio-insecticide-5-lb-detail
B76: Do My Own Pest Control | C76: 16 | D76: 22.95 | E76: 1.434375 | F76: 16 | G76: 8665817378 | I76: http://www.domyownpestcontrol.com/dipel-pro-df-biological-insecticide-p-2361.html
B78: Avaunt
B79: Suppliers | C79: Unit (oz) | D79: Price | E79: Price per oz | F79: Minmum order (oz) | G79: Phone | H79: Address | I79: Website
B80: Kestone Pest Solutions LLC | C80: 18 | D80: 139.95 | E80: =+D80/C80 -> 7.775 | F80: 18 | G80: (877)835-8321 | I80: http://www.keystonepestsolutions.com/avaunt-insecticide-18-ounces-518.html
B81: Mississippi State University Estimate 2013 | C81: 1 | D81: 7.39 | E81: =+D81/C81 -> 7.39 | I81: http://www.agecon.msstate.edu/whatwedo/budgets/docs/MSUVEG13.pdf
B85: Radiant SC
B86: Suppliers | C86: Unit | D86: Price | E86: Price per ml | F86: Minmum order | G86: Phone | H86: Address | I86: Website
B87: Kestone Pest Solutions LLC | C87: 1 qt | D87: 229.95 | E87: =+D87/C196 -> 0.2429862102 | F87: 1 qt | G87: (877)835-8321 | I87: http://www.keystonepestsolutions.com/radiant-sc-insecticide-1-quart-new-improved-spintor-spinosad-370.html
B88: Mississippi State University Estimate 2013 | C88: 1 oz | D88: 5.94 | E88: =+D88/C199 -> 0.200855294 | F88: 1 oz | I88: http://www.agecon.msstate.edu/whatwedo/budgets/docs/MSUVEG13.pdf
B92: Montana 2F
B93: Suppliers | C93: Unit (gal) | D93: Price | E93: Price per ml | F93: Minmum order (gal) | G93: Phone | H93: Address | I93: Website
B94: Kestone Pest Solutions LLC | C94: 1 | D94: 74.95 | E94: =+D94/$C$188 -> 0.01980184941 | F94: 1 | G94: (877)835-8321 | I94: http://www.keystonepestsolutions.com/montana-2f-insecticide-1-gal-same-ai-as-admire-pro-nuprid-2f-246.html
B95: Tampa Agricultural Products | C95: 1 | D95: 95 | E95: =+D95/$C$188 -> 0.0250990753 | F95: 1 | G95: 1-800-373-5008 | I95: http://www.tampaagriculturalproducts.com/insecticides/montana-2-imidacloprid/
B99: Herbicides
B100: Metribuzin
B101: Suppliers | C101: Unit (lb) | D101: Price | E101: Price per oz | F101: Minmum order (gal) | G101: Phone | H101: Address | I101: Website
B102: Chemical Outfitters | C102: 5 | D102: 85 | E102: =+D102/($C$192*$C$102) -> 1.0625 | F102: 1 | I102: http://www.chemicaloutfitters.com/gloryherbicidemetribuzin5lb.aspx
B103: Keystones Pest Solutions | C103: 5 | D103: 85.95 | E103: =+D103/($C$192*$C$102) -> 1.074375 | I103: http://www.keystonepestsolutions.com/tricor-75df-herbicide-metribuzin-75-5-pounds-replaces-sencor-75df-or-glory-331.html
B106: Poast
B107: Suppliers | C107: Unit (ga) | D107: Price | E107: Price per pt | F107: Minmum order (gal) | G107: Phone | H107: Address | I107: Website
B108: Keystones Pest Solutions | C108: 2.5 | D108: 249.95 | E108: =+D108/($C$108*8) -> 12.4975 | F108: 2.5 | I108: https://www.keystonepestsolutions.com/poast-herbicide-2-5-gallons-183.html
B113: BLACK PLASTIC
B114: Suppliers | C114: Unit (roll 4000 feet by 4 feet) | D114: Price | E114: Price per square foot | F114: Minimum order | G114: Phone | H114: Address | I114: Website
B115: Grainger Farmers Co-op | C115: 1 | D115: 124.99 | E115: =+D115/16000 -> 0.007811875 | F115: 4 x 4000 | G115: (865) 828-5226 | H115: 8570 Rutledge Pike Rutledge, TN 37861 | I115: http://ourcoop.com/ourcoop08/locator/storeDetail.aspx?storeID=37
B116: TN Farm Suppy | C116: 1 | D116: 169.95 | E116: =+D116/16000 -> 0.010621875 | F116: 4 x 50 - price vary by roll size | G116: (931) 528-3390 | H116: 2212 Isaacs pass Cookeville, TN 38501 | I116: http://tnfarmsupply.com/PROD/black-plastic-mulch-1-mil-embossed/SRMBlack
B117: Johnny's Seeds | C117: 1 | D117: 264 | E117: 0.0165 | F117: 4 x 600 - price vary by role size | G117: (877) 564-6697 | I117: http://www.johnnyseeds.com/p-9198-black-mulch-4-x-4000-embossed.aspx
B118: Growers Solution | C118: 1 | D118: 169.95 | E118: 0.010621875 | F118: 4 x 600 - price vary by role size | G118: (866) 928-3390 | H118: 1211 Boyd Farris Rd, Cookeville, TN 38506 | I118: http://www.growerssolution.com/PROD/black-plastic-mulch-1-mil-embossed/SRMBlack
B119: Irrigation Mart | C119: 1 | D119: =+(181.6+162.95)/2 -> 172.275 | E119: 0.0107671875 | F119: 4 x 2400 - price vary by role size | G119: (318) 255-1832 | H119: 200 South Service Road East Ruston, LA 71270-3442 | I119: http://www.irrigation-mart.com/default.aspx?page=item+detail&itemcode=M4840100BEN&catlist=100
B121: STAKES
B122: Suppliers | C122: Unit (stakes) | D122: Price | E122: Price per stake | F122: Minimum order | G122: Phone | H122: Address | I122: Website
B123: Irrigation Mart | C123: 25 | D123: 16.5 | E123: =+D123/C123 -> 0.66 | F123: 25 | G123: (318) 255-1832 | H123: 200 South Service Road East Ruston, LA 71270-3442 | I123: http://www.irrigation-mart.com/default.aspx?page=item+detail&itemcode=M4840100BEN&catlist=100
B124: Tractor Supply | C124: 1 | D124: 0.99 | E124: =+D124/C124 -> 0.99 | F124: 1 | G124: (877) 718-6750 | H124: 5401 Virginia Way Brentwood, TN 37027 | I124: http://www.tractorsupply.com/en/store/hickory-oak-gardening-stake-48-in
B125: Jackson’s Seed and Farm Supply | C125: 1 | D125: 0.45 | E125: =+D125/C125 -> 0.45 | F125: 1 | G125: 816) 424-3084 | H125: 13015 SE Bigham Rd Easton Missouri | I125: https://www.facebook.com/pages/Jackson-Seed-Farm-Supply/112252972170652
B128: TWINE/STRING
B129: Suppliers | C129: Unit (box/tube) | D129: Price | E129: Price per box/tube | G129: Phone | H129: Address | I129: Website
B130: Grainger Farmers Co-op | C130: 1 | D130: 6.99 | E130: =+D130/C130 -> 6.99 | G130: (865) 828-5226 | H130: 8570 Rutledge Pike Rutledge, TN 37861 | I130: http://ourcoop.com/ourcoop08/locator/storeDetail.aspx?storeID=37
B131: Jackson’s Seed and Farm Supply | C131: 1 | D131: 7 | E131: =+D131/C131 -> 7 | G131: 816) 424-3084 | H131: 13015 SE Bigham Rd Easton Missouri | I131: https://www.facebook.com/pages/Jackson-Seed-Farm-Supply/112252972170652
B132: Irrigation Mart | C132: 1 | D132: 8.3 | E132: =+D132/C132 -> 8.3 | G132: (318) 255-1832 | H132: 200 South Service Road East Ruston, LA 71270-3442 | I132: http://www.irrigation-mart.com/default.aspx?page=item+detail&itemcode=M4840100BEN&catlist=100
B134: DRIP LINE
B135: Suppliers | C135: Unit (roll) | D135: Price | E135: Price per foot | G135: Phone | H135: Address | I135: Website
B136: Sunlight Supply Inc | C136: 1 x 1000 ft | D136: 63.99 | E136: =+D136/1000 -> 0.06399 | G136: (865) 984-0280 | H136: 3308 Old Knoxville HWY Maryville, TN 37804 | I136: https://www.sunlightsupply.com/shop/bycategory/pumps-and-irrigation-supplies/hydro-flow-poly-tubing
B137: Irrigation Mart | C137: 1 x 1000 ft | D137: 67.41 | E137: =+D137/1000 -> 0.06741 | G137: (318) 255-1832 | H137: 200 South Service Road East Ruston, LA 71270-3442 | I137: http://www.irrigation-mart.com/default.aspx?page=item+detail&itemcode=M4840100BEN&catlist=100
B138: Growers Solution | C138: 1 x 1000 ft | D138: 74.95 | E138: =+D138/1000 -> 0.07495 | G138: (866) 928-3390 | H138: 1211 Boyd Farris Rd, Cookeville, TN 38506 | I138: http://www.growerssolution.com/page/GS/PROD/driptape15mil4000
B142: Company | C142: Type | D142: Min. Quantity | E142: Total Price | F142: Per Unit Price | G142: Web Link | H142: Phone
B143: Sustainable Transport Packaging | C143: Plastic Collapsible | D143: 1 | E143: 10.66 | F143: 10.66 | G143: http://www.sustainabletransportpackaging.com/vented-collapsible-hand-held-containers/24x16x5-collapsible-hand-held-container | H143: 7273912300
B144: Alibaba | C144: Plastic | D144: 100 | E144: 600 | F144: 6 | G144: http://www.alibaba.com/product-detail/Grid-surface-PE-plastic-oval-baskets_60101535296.html | H144: None listed
B145: Dubois Agrinovation | C145: Plastic | D145: 1 | E145: 8.95 | F145: 8.95 | G145: http://www.duboisag.com/en/produce-lugs.html | H145: 18004639999
D149: OTHER INFORMATION
B151: Tomato Marketable Yield per Plant
B152: Unit | C152: Quantity | D152: Source
B153: lb | C153: 7 | D153: http://vegetables.tennessee.edu/Tomato/tomato2011_1.html
B155: Tomato prices at Farmers markets
B156: Price scenario | C156: $/lb | D156: Website Farmers Markets Price Reports
B157: low | C157: 2 | D157: http://www.uky.edu/Ag/CCD/TNfarmersmarket.html
B158: average | C158: 2.5 | D158: http://www.uky.edu/Ag/CCD/TNfarmersmarket.html
B159: high | C159: 3 | D159: http://www.uky.edu/Ag/CCD/TNfarmersmarket.html
B161: Farmer Markets Fees
C162: Annual Fee | D162: Booth Fees | E162: Inspection Fee | F162: Website
B163: Market Square Farmers' Markets | C163: 30 | D163: 10 | F163: http://marketsquarefarmersmarket.org/
B164: East Tennessee Farmers Association for Retail Marketing - Farmers market | C164: 20 | D164: 4% of gross sales | E164: 25 | F164: http://www.easttnfarmmarkets.org/
B165: Dixie Lee Farmers Markets | C165: 20 | D165: 12.5 | F165: http://www.dixieleefarmersmarket.com/
B166: New Harvest Park Farmers Market | D166: 10 | F166: http://www.knoxcounty.org/farmersmarket/
B167: Maryville Farmers Market | C167: 20 | D167: 20 | F167: http://www.maryvillefarmersmarket.org/
B168: Bradley County Farmers Market | C168: 25 | F168: http://www.bradleyco.net/farmersmarket.aspx
B169: UT Farmers Market | C169: 25 | D169: 5 | F169: http://www.easttnfarmmarkets.org/
B170: Greenville Farmers Market | C170: 75 | F170: http://www.greenevillefarmersmarket.com/vendor-agreement-submit-on-line.html
B171: Chatoonaga Market | C171: 50 | F171: http://chattanoogamarket.com/2015/02/13/become-a-vendor-2/
B172: Lookout Farmers Markets | C172: 10 | D172: 10 | F172: http://www.lookoutfarmersmarket.com/index.html
B173: Main Street Farmers Market | C173: 50 | D173: 15 | F173: http://mainstfarmersmarket.com/
B174: Dandrige Farmers Market | C174: 25 | D174: 7 | F174: http://www.mainstreetdandridge.com/
B175: Johnson County Farmers Market | F175: http://www.johnsoncountyfm.org/
B176: Monroe County Farmers Markets | C176: 10 | D176: 10 | F176: https://sites.google.com/site/mcfarmmarket/
B177: Gatlinburg Farmers Market | C177: 40 | F177: http://www.gatlinburgfarmersmarket.com/
B178: Kingsport Farmers Market | C178: 20 | D178: 10 | F178: http://kingsporttn.gov/kingsport-farmers-market
B181: CONVERSION TABLES
B183: ACRE | C183: SQUARE FEET
B184: 1 | C184: 43560
B185: =+C185/C184 -> 0.02295684114 | C185: 1000
B187: GALLON | C187: MILLILITER
B188: 1 | C188: 3785
B189: =+C189/C188 -> 0.0002642007926 | C189: 1
B191: LB | C191: OZ
B192: 1 | C192: 16
B195: QT | C195: MILLILITER
B196: 1 | C196: 946.35
B198: OZ | C198: MILLILITER
B199: 1 | C199: 29.57352969
